Cogmind - Beta 9.4 @@@ ROGUE MODE // 2020.02.11 @ 17:58:30 Player: j4nw Result: Destroyed by G-34 Mercenary with Small Laser Performance ------------- Evolutions (1) 500 Regions Visited (2) 400 Robots Destroyed (39) 195 Value Destroyed (854) 854 Prototype IDs (0) 0 Alien Tech Used (0) 0 Bonus (37) 37 TOTAL SCORE: 1986 Bonus ------- High Alert Combat Kills 37 Cogmind --------- Core Integrity 0/400 Matter 210/300 Energy 100/100 System Corruption 0% Temperature Cool (18) Movement Core (150) Ox2 Location -9/Materials Parts ------- > --- POWER (1) -------- (None) > --- PROPULSION (4) --- (None) > --- UTILITY (2) ------ Medium Storage Unit > --- WEAPON (2) ------- (None) > --- INVENTORY (8) ---- Ion Engine Ion Engine Improved Ion Engine Aluminum Leg Improved Heat Sink Hardened Light Armor Plating Improved Light Cannon Improved Grenade Launcher Peak State ------------ > --- POWER ------------ Improved Ion Engine > --- PROPULSION ------- Improved Aluminum Leg Improved Aluminum Leg Improved Aluminum Leg Improved Aluminum Leg > --- UTILITY ---------- Medium Storage Unit Hardened Light Armor Plating > --- WEAPON ----------- Heavy Assault Rifle Heavy Assault Rifle > --- INVENTORY -------- Ion Engine Ion Engine Improved Ion Engine Aluminum Leg Improved Heat Sink Hardened Light Armor Plating Improved Light Cannon Improved Grenade Launcher [Rating: 18] Favorites ----------- Power Ion Engine Engine Ion Engine Propulsion Aluminum Leg Leg Aluminum Leg Utility Medium Storage Unit Device Improved Heat Sink Storage Medium Storage Unit Protection Light Armor Plating Weapon Heavy Assault Rifle Energy Gun Small Laser Ballistic Gun Heavy Assault Rifle Launcher Grenade Launcher Build | -11 -10 -9 ------- Run | Scr Mat Mat Slots Evolved 2 | . . 2 Power . | . . . Propulsion 2 | . . 2 Utility . | . . . Weapon . | . . . Parts Attached 41 | 6 7 28 Power 3 | 1 . 2 Engine 3 | 1 . 2 Core . | . . . Reactor . | . . . Propulsion 21 | 2 3 16 Treads . | . . . Leg 21 | 2 3 16 Wheel . | . . . Hover . | . . . Flight . | . . . Utility 7 | 1 2 4 Device 1 | . 1 . Storage 2 | 1 1 . Processor . | . . . Hackware . | . . . Protection 4 | . . 4 Artifact . | . . . Weapon 10 | 2 2 6 Energy Gun 3 | 2 1 . Energy Cannon . | . . . Ballistic Gun 6 | . 1 5 Ballistic Cannon . | . . . Launcher 1 | . . 1 Special Weapon . | . . . Impact Weapon . | . . . Slashing Weapon . | . . . Piercing Weapon . | . . . Special Melee Weapon . | . . . Unidentified Prototypes . | . . . Parts Lost 13 | . 1 12 Power 1 | . . 1 Propulsion 4 | . . 4 Utility 3 | . . 3 Weapon 5 | . 1 4 Highest Loss Streak 7 | . 1 7 Average Slot Usage (%) 94 | . 92 95 Engine 12 | . 14 10 Leg 37 | . 28 43 Device 2 | . 7 . Storage 12 | . 14 11 Protection 5 | . . 9 Energy Gun 8 | . 23 . Ballistic Gun 14 | . 3 20 Naked Turns . | . . . Heaviest Build 26 | 12 16 26 Greatest Support 52 | 20 20 52 Greatest Overweight (x) 2 | 2 . . Average Overweight (x) . | . . . Largest Inventory Capacity 8 | 6 8 8 Average Capacity 7 | 5 6 8 Most Carried 8 | 4 7 8 Average Carried 6 | 2 5 6 Final Capacity 8 | 6 8 8 Final Carried 8 | 2 7 8 Class Distribution -------------------- 69% | Mutant 30% | Scavenger-Mutant Dominant Class ---------------- Mutant | -10/Materials Mutant | -9/Materials Resources | -11 -10 -9 ----------- Run | Scr Mat Mat Matter Collected 974 | 260 65 649 Remotely . | . . . Salvage Created 1080 | . 273 807 Parts 86 | . 9 77 Haulers Intercepted . | . . . Recyclers Shooed 2 | . . 2 Parts Field Recycled . | . . . Retrieved Matter . | . . . Parts Self-Destructed . | . . . Prevented . | . . . Kills | -11 -10 -9 ------- Run | Scr Mat Mat Combat Hostiles Destroyed 32 | . 6 26 Guns 31 | . 6 25 AOE 1 | . . 1 Classes Destroyed 7 | . 1 6 Worker 3 | . . 3 Builder 1 | . . 1 Operator 1 | . . 1 Watcher 2 | . . 2 Swarmer 16 | . . 16 Grunt 11 | . 6 5 Sentry 5 | . . 5 Best Kill Streak 14 | . 2 14 Combat Bots Only 12 | . 2 12 Max Kills in Single Turn 2 | . 1 2 Gunslinging 1 | . . 1 Exploded 1 | . . 1 Melee . | . . . Uniques/NPCs Destroyed . | . . . Combat | -11 -10 -9 -------- Run | Scr Mat Mat Damage Taken 2506 | . 375 2131 Core 481 | . 76 405 Absorbed by Shields . | . . . Core Remaining (%) 84 | 100 69 . Volleys Fired 132 | . 34 98 Largest 2 | . 2 2 Hottest 90 | . 90 50 Shots Fired 251 | . 62 189 Gun 249 | . 62 187 Cannon . | . . . Launcher 2 | . . 2 Special . | . . . Kinetic 192 | . 5 187 Thermal 57 | . 57 . Explosive 2 | . . 2 Electromagnetic . | . . . Robot Hit Streak 13 | . 13 11 Robot Miss Streak 6 | . 6 5 Penetration Max . | . . . Secondary Targets 2 | . . 2 Max Gunslinging Chain 1 | . . 1 Shots Hit Robots 161 | . 41 120 Core Hits 67 | . 16 51 Critical Hits . | . . . Critical Kills . | . . . Critical Parts Destroyed . | . . . Melee Attacks . | . . . Impact . | . . . Slashing . | . . . Piercing . | . . . Sneak Attacks . | . . . Combat Hostiles . | . . . Follow-up Attacks . | . . . Damage Inflicted 2149 | . 453 1696 Guns 2108 | . 453 1655 Cannons . | . . . Explosions 41 | . . 41 Melee . | . . . Ramming . | . . . Kinetic 1690 | . 35 1655 Thermal 418 | . 418 . Explosive 41 | . . 41 Electromagnetic . | . . . Impact . | . . . Slashing . | . . . Piercing . | . . . Highest Corruption . | . . . Average Corruption . | . . . Corruption Purged . | . . . Overload Shots . | . . . Overflow Damage . | . . . Projectiles . | . . . Explosions . | . . . Melee . | . . . Knockbacks . | . . . Impact . | . . . Kinetic . | . . . Secondary . | . . . Self-Inflicted Damage 21 | . . 21 Shots 2 | . . 2 Rammed . | . . . Targets Rammed . | . . . Kicked . | . . . Crushed . | . . . Highest Temperature 228 | . 228 66 Average Temperature 34 | . 81 15 Received Heat Transfer 798 | . 213 585 Siege Activations . | . . . Robots Corrupted . | . . . Combat Hostiles . | . . . Parts Fried . | . . . Impact Corruptions . | . . . Robots Melted . | . . . Combat Hostiles . | . . . Parts Melted 4 | . 4 . Heat Transferred 1010 | . 1010 . Parts Sabotaged . | . . . Parts Stolen . | . . . Parts Stripped . | . . . Power Chain Reactions . | . . . Missiles Intercepted . | . . . Alert | -11 -10 -9 ------- Run | Scr Mat Mat Peak Influence 525 | . 145 525 Average Influence 172 | . 36 262 Maximum Alert Level 2 | . . 2 Low Security (%) 64 | 100 100 41 Level 1 15 | . . 26 Level 2 19 | . . 32 Level 3 . | . . . Level 4 . | . . . Level 5 . | . . . High Security . | . . . Max Security . | . . . Squads Dispatched 5 | . 1 4 Investigation . | . . . Extermination . | . . . Reinforcement 4 | . 1 3 Assault 1 | . . 1 Garrison . | . . . Intercept . | . . . Construction Impeded . | . . . Haulers Reinforced . | . . . Stealth | -11 -10 -9 --------- Run | Scr Mat Mat Distress Signals 2 | . 1 1 Communications Jammed . | . . . Distress Signals . | . . . Times Spotted 65 | . 17 48 Peak Tracking Total 8 | . 4 8 Tactical Retreats 2 | . 1 1 Traps | -11 -10 -9 ------- Run | Scr Mat Mat Traps Triggered . | . . . Indirectly . | . . . Trap Hack Attempts . | . . . Triggered . | . . . Disarmed . | . . . Reprogrammed . | . . . Reused . | . . . Traps Extracted . | . . . Installed . | . . . Triggered . | . . . Machines | -11 -10 -9 ---------- Run | Scr Mat Mat Machines Disabled . | . . . Max in Single Turn . | . . . Machines Sabotaged . | . . . Garrisons Compromised . | . . . Overloaded Fab Kills . | . . . Fab Network Shutdowns . | . . . Hacking | -11 -10 -9 --------- Run | Scr Mat Mat Machines Accessed 11 | . 5 6 Terminals 8 | . 4 4 Fabricators . | . . . Repair Stations 3 | . 1 2 Recycling Units . | . . . Scanalyzers . | . . . Garrison Access . | . . . Total Hacks 26 | . 10 16 Successful 21 | . 6 15 Failed 5 | . 4 1 Catastrophic . | . . . Database Lockouts . | . . . Manual 4 | . 3 1 Terminals 15 | . 7 8 Fabricators . | . . . Repair Stations 11 | . 3 8 Recycling Units . | . . . Scanalyzers . | . . . Garrison Access . | . . . Terminal Hacks 11 | . 4 7 Record 2 | . . 2 Alert Level 2 | . 1 1 Locate Traps 4 | . 2 2 Maintenance Status 1 | . . 1 Hauler Manifests 1 | . . 1 Zone Layout 1 | . 1 . Fabricator Hacks . | . . . Repair Station Hacks 10 | . 2 8 Scan Component 5 | . 1 4 Repair 5 | . 1 4 Recycling Unit Hacks . | . . . Scanalyzer . | . . . Garrison Access Hacks . | . . . Unauthorized Hacks . | . . . Terminals . | . . . Fabricators . | . . . Repair Stations . | . . . Recycling Units . | . . . Scanalyzers . | . . . Garrison Access . | . . . Data Cores Recovered . | . . . Used . | . . . Hacking Detections 6 | . 4 2 Full Trace Events . | . . . Feedback Events . | . . . Feedback Blocked . | . . . Robot Schematics Acquired . | . . . Robots Built . | . . . Matter . | . . . Time . | . . . Total Robot Build Rating . | . . . Part Schematics Acquired . | . . . Parts Built . | . . . Matter . | . . . Time . | . . . Total Part Build Rating . | . . . Parts Repaired 5 | . 1 4 Time 154 | . 38 116 Parts Recycled . | . . . Recycled Matter . | . . . Retrieved Matter . | . . . Retrieved Components . | . . . Parts Scanalyzed . | . . . Part Schematics Acquired . | . . . Parts Damaged . | . . . Bothacking | -11 -10 -9 ------------ Run | Scr Mat Mat Used RIF Installer . | . . . Robots Hacked . | . . . Non-combat . | . . . Combat . | . . . Robot Hacks Applied . | . . . Relay Couplers Released . | . . . Robots Rewired . | . . . Allies Hacked . | . . . Hacks Repelled . | . . . Allies | -11 -10 -9 -------- Run | Scr Mat Mat Total Allies . | . . . Largest Group . | . . . Highest-Rated Group . | . . . Highest-Rated Ally . | . . . Total Orders . | . . . Ally Attacks . | . . . Total Damage . | . . . Kills . | . . . Allies Corrupted . | . . . Allies Melted . | . . . Intel | -11 -10 -9 ------- Run | Scr Mat Mat Robot Analysis Total . | . . . Derelict Logs Recovered . | . . . Drone Launches . | . . . Drone Recoveries . | . . . Exploration | -11 -10 -9 ------------- Run | Scr Mat Mat Turns Passed 2149 | 60 781 1308 Spaces Moved 1073 | 37 502 534 Core 15 | 15 . . Treads . | . . . Legs 1058 | 22 502 534 Wheels . | . . . Hover . | . . . Flight . | . . . Fastest Speed 50 | 50 120 120 Average Speed 119 | 103 120 120 Slowest Speed 150 | 150 120 120 Overloaded Moves . | . . . Propulsion Burnouts . | . . . Robots Hopped . | . . . Cave-ins Triggered . | . . . Exploration Rate (%) 42 | 3 78 46 Regions Visited 2 Branch Regions . Pre-discovered Areas . | . . . Known Exits Taken . | . . . Unknown Exits Taken 2 | 1 1 . Scrap Searched . | . . . Spaces Dug . | . . . Terrain Destroyed 16 | . . 16 Melee . | . . . Projectile . | . . . AOE 16 | . . 16 Actions | -11 -10 -9 --------- Run | Scr Mat Mat Total 1702 | 57 621 1024 Wait 411 | 10 68 333 Move 1071 | 36 501 534 Hop . | . . . Pick Up 27 | 5 6 16 Fast Attach 5 | 3 1 1 Attach 13 | 3 1 9 Detach . | . . . Swap 23 | . 5 18 Drop 20 | . 5 15 Fire 132 | . 34 98 Melee . | . . . Ram . | . . . Kick . | . . . Crush . | . . . Escape Stasis . | . . . Rewire . | . . . Trap . | . . . Miscellaneous . | . . . Route ------- -11/Scrapyard -10/Materials (discovered 4 exits: *Mat x3 / [*Min]) -9/Materials (discovered 2 exits: [*Mat] / [*Min]) History --------- Turn | Location | Event 5 | -11/Scrapyard | Discovered new exit (range 16) 61 | -11/Scrapyard | Entered Materials 155 | -10/Materials | Discovered new exit (range 5) 309 | -10/Materials | Build established: Mutant 473 | -10/Materials | Discovered new exit (range 16) 536 | -10/Materials | Discovered new exit (range 3) 805 | -10/Materials | Repaired Imp. Heat Sink 812 | -10/Materials | Discovered new exit (range 12) 842 | -10/Materials | Entered another Materials area 842 | -9/Materials | Evolved 2 slots: Propulsion x2 953 | -9/Materials | Repaired Hvy. Assault Rifle 1459 | -9/Materials | Lost 3 parts (1n1u1w) 1460 | -9/Materials | Destroyed 12 combat bots 1542 | -9/Materials | Repaired Aluminum Leg 1570 | -9/Materials | Repaired Aluminum Leg 1605 | -9/Materials | Repaired Hvy. Assault Rifle 1630 | -9/Materials | Discovered new exit (range 12) 1773 | -9/Materials | Build established: Scavenger-Mutant 1893 | -9/Materials | Discovered new exit (range 16) 2042 | -9/Materials | First assault squad dispatched 2139 | -9/Materials | Core integrity fell below 50% 2148 | -9/Materials | Core integrity fell below 20% 2150 | -9/Materials | Destroyed by G-34 Mercenary with Small Laser Last Messages --------------- 02042_ ALERT: Significant disruption in Zone 8G, assault force dispatched. 02061_ O-16 Technician: "IFF HANDSHAKE FAILED. SECURING TERMINAL." 02067_ O-16 Technician uses terminal to summon reinforcements. 02067_ ALERT: Hostiles spotted, dispatching reinforcements to Terminal M004. 02067_ O-16 Technician locks terminal. 02099_ C-30 ARC bursts open, deploying its payload. 02099_ G-47 Trooper unfolds itself. 02099_ G-34 Mercenary unfolds itself. 02099_ L-31 Rogue unfolds itself. 02099_ G-34 Mercenary unfolds itself. 02105_ K-01 Serf collects debris. 02114_ Hvy. Assault Rifle destroyed. 02126_ Imp. Aluminum Leg severed. 02129_ K-01 Serf cleans the Terminal. 02132_ K-01 Serf collects debris. 02139_ Imp. Aluminum Leg destroyed. 02142_ Hrd. Light Armor Plating destroyed. 02144_ Imp. Aluminum Leg destroyed. 02144_ Imp. Ion Engine destroyed. Map ----- +----------------------------------------------------+ | ?????????????????############????????????????????? | | ?????????????##### # #????????????????????? | | ?????????????#]] < # #????????????????????? | | ?????????????#] ] # === #??????????????######? | | ?????????????#!! + === #??????????????# | | ?????????????#!! # === #??????????????# | | ?????????????#// # #??????????????# | | ?????????????#// ########??????????????######? | | ?????????????##### #########???################# | | ???????########### # = #???# # "T" | | ???????# # # !![ #???# """# | | ???????# """ ![! + + =[ #???# R"# ! ! | | ???????# "T" ![! # # #???# """####+## | | ???????# !!! # # #???# """ #?## ## | | ???????# ######### #########???# """ #?# | | ????????????????# #??????????# """ ### | | ????????????????# #??????????# + | | ????????????????# = ################+##### # | | ????????????????# %% %!=!*= [* % % [*### # | | ????????????????# ############## % * # | | ????????????????## ######## ?????# = # | | ?????????????????# # +??????# =! # | | ?????????????????# # = gi#??????#== = ##### # | | ????????????###### +%"" g #?????####+#####?# # | | ????? # "Tlgg#?????# [ [= ### # | | ?????????######### # ""@ #?????# %=[ +%[ # | | ?????????????????# # g #?????# ##= # | | ?????????????????# ########?????# ## # | | ?????????????????# #????????????# ## # | | ?????????????????# #????????????# ## | | ?????????????????+ +????????????# ## ^ | | ?????????????????# #????????????# ## ^!]^ | | ?????????????????# #????????????# ## !] | | ?????????????????# #????????????###########^ | | ????????????????? ??????????????????????# | | ????????????????? ??????????????????????# ^ | | ????????????????? T ??????????????????????# ^""" | | ????????????????? ??????????????????????# """ | | ????????????????# ? ??????????????????##### """ | | ??????????????????#?#???????????????????# # | | ????????????????????????????????????????# # | | ????????????????????????????????????????# # | | ????????????????????????????????????????## ####### | | ?????????????????????????????????????????# #?????? | | ?????????????????????????????????????????# ####### | | ?????????????????????????????????????????# ! | | ?????????????????????????????????????????######### | | ?????????????????????????????????????########????? | | ?????????????????????????????????????# #????? | | ?????????????????????????????????????# """ #????? | +----------------------------------------------------+ Best States ------------- Heat Dissipation 39 Energy Generation 12 Energy Capacity 265 Matter Stores 300 Matter Capacity 300 Sight Range 16 Terrain Scan Density 10 Armor Coverage 150 Evasion (%) 50 Item Schematics ----------------- None Robot Schematics ------------------ None Fabricated ------------ Nothing Alien Tech Used ----------------- None Achievements -------------- None Challenges ------------ None Game ------ Seed TransmissionArmorCompactor Manual? 0 Play Time 00:25:08 Cumulative 7.8 hours Start 2020.02.11 @ 17:33:30 End 2020.02.11 @ 17:58:30 Sessions 1 Manual Loads 0 Difficulty Rogue Special Mode None Game No. 15 Rogue 15 Adventurer 0 Explorer 0 Win Type - Total 0 Types 0/0/0/0/0/0/0 Lore% 3 Gallery% 10 Achievement% 12 Wizard Run 0 Options --------- ASCII 0 Keyboard 0 Movement Mouse Keybinds 0 Fullscreen 1 Font 24/Smallcaps Map View 76x50 Tactical HUD 1 Map Filters NONE Filters NONE Steam 1 RUN: e7f59275-9c50-4418-b7c5-b76751c1c5ab